[Event "Titled Tuesday Blitz June 29 2021"]
[White "Aradhya2000"]
[Black "Aleksandar-Topalov"]
[WhiteElo "2694"]
[BlackElo "2411"]
[Result "1-0"]
[Round "09"]
[TimeControl "180+1"]
[Date "2021.06.29"]
[WhiteClock "0:02:36"]
[BlackClock "0:01:58"]

1. d4 {[%clk 0:03:00]}  Nf6 {[%clk 0:02:59]} 2. c4 {[%clk 0:03:00]}  c5 {[%clk 0:02:59]} 3. dxc5 {[%clk 0:03:00]}  Na6 {[%clk 0:02:58]} 4. Be3 {[%clk 0:03:00]}  Ng4 {[%clk 0:02:57]} 5. Qd2 {[%clk 0:02:58]}  Nxe3 {[%clk 0:02:55]} 6. Qxe3 {[%clk 0:02:58]}  Qa5+ {[%clk 0:02:56]} 7. Nc3 {[%clk 0:02:58]}  Qxc5 {[%clk 0:02:55]} 8. Qxc5 {[%clk 0:02:58]}  Nxc5 {[%clk 0:02:55]} 9. g3 {[%clk 0:02:58]}  d6 {[%clk 0:02:47]} 10. Bg2 {[%clk 0:02:58]}  a6 {[%clk 0:02:47]} 11. Nh3 {[%clk 0:02:57]}  g6 {[%clk 0:02:45]} 12. Nf4 {[%clk 0:02:57]}  Bg7 {[%clk 0:02:44]} 13. Rc1 {[%clk 0:02:57]}  Rb8 {[%clk 0:02:36]} 14. O-O {[%clk 0:02:57]}  O-O {[%clk 0:02:36]} 15. Nfd5 {[%clk 0:02:54]}  e6 {[%clk 0:02:16]} 16. Ne7+ {[%clk 0:02:39]}  Kh8 {[%clk 0:02:14]} 17. Rfd1 {[%clk 0:02:39]}  Rd8 {[%clk 0:02:14]} 18. b4 {[%clk 0:02:39]}  Bf6 {[%clk 0:02:03]} 19. Nxc8 {[%clk 0:02:37]}  Rbxc8 {[%clk 0:01:58]} 20. bxc5 {[%clk 0:02:36]}  Rxc5 {[%clk 0:01:58]} 21. Ne4 {[%clk 0:02:36]} 1-0


[Site "https://www.chess.com"]

[Event "Titled Tuesday Blitz June 29 2021"]
[White "Beca95"]
[Black "Skat2704"]
[WhiteElo "2842"]
[BlackElo "2658"]
[Result "1-0"]
[Round "09"]
[TimeControl "180+1"]
[Date "2021.06.29"]
[WhiteClock "0:01:48"]
[BlackClock "0:00:19"]

1. d4 {[%clk 0:03:00]}  d5 {[%clk 0:02:59]} 2. Nf3 {[%clk 0:03:00]}  Nf6 {[%clk 0:02:59]} 3. Bf4 {[%clk 0:03:01]}  e6 {[%clk 0:02:59]} 4. e3 {[%clk 0:03:00]}  Bd6 {[%clk 0:02:59]} 5. Nbd2 {[%clk 0:03:00]}  O-O {[%clk 0:02:58]} 6. Bd3 {[%clk 0:02:56]}  c5 {[%clk 0:02:57]} 7. dxc5 {[%clk 0:02:55]}  Bxf4 {[%clk 0:02:51]} 8. exf4 {[%clk 0:02:56]}  Qc7 {[%clk 0:02:48]} 9. g3 {[%clk 0:02:55]}  Qxc5 {[%clk 0:02:48]} 10. Qe2 {[%clk 0:02:55]}  Nc6 {[%clk 0:02:45]} 11. a3 {[%clk 0:02:55]}  a6 {[%clk 0:02:43]} 12. O-O {[%clk 0:02:54]}  b5 {[%clk 0:02:41]} 13. c3 {[%clk 0:02:45]}  Qb6 {[%clk 0:02:34]} 14. Ne5 {[%clk 0:02:43]}  Na5 {[%clk 0:02:30]} 15. Ndf3 {[%clk 0:02:40]}  Nb3 {[%clk 0:02:21]} 16. Rad1 {[%clk 0:02:38]}  Nc5 {[%clk 0:02:21]} 17. Bb1 {[%clk 0:02:36]}  Bb7 {[%clk 0:02:17]} 18. Nd4 {[%clk 0:02:34]}  Rfd8 {[%clk 0:02:09]} 19. Kg2 {[%clk 0:02:29]}  Rac8 {[%clk 0:02:07]} 20. h4 {[%clk 0:02:28]}  Nfe4 {[%clk 0:01:51]} 21. f3 {[%clk 0:02:27]}  Nd6 {[%clk 0:01:50]} 22. g4 {[%clk 0:02:18]}  a5 {[%clk 0:01:46]} 23. h5 {[%clk 0:02:13]}  b4 {[%clk 0:01:44]} 24. Qc2 {[%clk 0:02:12]}  f5 {[%clk 0:01:34]} 25. gxf5 {[%clk 0:02:11]}  b3 {[%clk 0:01:34]} 26. Qf2 {[%clk 0:02:08]}  exf5 {[%clk 0:01:29]} 27. Rg1 {[%clk 0:02:02]}  Na4 {[%clk 0:01:08]} 28. Kh3 {[%clk 0:01:58]}  Rc7 {[%clk 0:00:51]} 29. Rg2 {[%clk 0:01:57]}  Bc8 {[%clk 0:00:50]} 30. Rdg1 {[%clk 0:01:55]}  Nc4 {[%clk 0:00:45]} 31. Qh4 {[%clk 0:01:53]}  Ra7 {[%clk 0:00:25]} 32. h6 {[%clk 0:01:50]}  Ne3 {[%clk 0:00:19]} 33. Rxg7+ {[%clk 0:01:48]} 1-0


[Site "https://www.chess.com"]

[Event "Titled Tuesday Blitz June 29 2021"]
[White "BigAl"]
[Black "moro182"]
[WhiteElo "2616"]
[BlackElo "2708"]
[Result "0-1"]
[Round "09"]
[TimeControl "180+1"]
[Date "2021.06.29"]
[WhiteClock "0:00:08"]
[BlackClock "0:00:04"]

1. Nf3 {[%clk 0:03:00]}  g6 {[%clk 0:02:58]} 2. e4 {[%clk 0:03:00]}  Bg7 {[%clk 0:02:59]} 3. d4 {[%clk 0:03:00]}  d6 {[%clk 0:03:00]} 4. Nc3 {[%clk 0:03:01]}  Nf6 {[%clk 0:03:00]} 5. Be3 {[%clk 0:03:01]}  O-O {[%clk 0:02:53]} 6. Qd2 {[%clk 0:03:02]}  d5 {[%clk 0:02:53]} 7. e5 {[%clk 0:02:59]}  Ne4 {[%clk 0:02:51]} 8. Nxe4 {[%clk 0:02:59]}  dxe4 {[%clk 0:02:52]} 9. Ng5 {[%clk 0:02:59]}  c5 {[%clk 0:02:27]} 10. c3 {[%clk 0:02:56]}  cxd4 {[%clk 0:02:22]} 11. cxd4 {[%clk 0:02:56]}  Nc6 {[%clk 0:02:22]} 12. Bc4 {[%clk 0:02:47]}  Bf5 {[%clk 0:02:08]} 13. O-O {[%clk 0:02:22]}  Rc8 {[%clk 0:02:02]} 14. Rac1 {[%clk 0:02:12]}  e6 {[%clk 0:01:29]} 15. f3 {[%clk 0:01:57]}  exf3 {[%clk 0:01:27]} 16. Nxf3 {[%clk 0:01:55]}  Qa5 {[%clk 0:01:19]} 17. Qf2 {[%clk 0:01:47]}  Nb4 {[%clk 0:01:05]} 18. Nh4 {[%clk 0:01:10]}  Bd3 {[%clk 0:00:42]} 19. Bb3 {[%clk 0:00:57]}  Bxf1 {[%clk 0:00:41]} 20. Rxf1 {[%clk 0:00:57]}  Nd5 {[%clk 0:00:38]} 21. Nf3 {[%clk 0:00:50]}  Nxe3 {[%clk 0:00:37]} 22. Qxe3 {[%clk 0:00:50]}  Qb4 {[%clk 0:00:32]} 23. Qe4 {[%clk 0:00:40]}  Rcd8 {[%clk 0:00:24]} 24. h4 {[%clk 0:00:30]}  h5 {[%clk 0:00:19]} 25. Rd1 {[%clk 0:00:23]}  Rd7 {[%clk 0:00:17]} 26. Ng5 {[%clk 0:00:21]}  Rfd8 {[%clk 0:00:17]} 27. Nxe6 {[%clk 0:00:21]}  fxe6 {[%clk 0:00:13]} 28. Bxe6+ {[%clk 0:00:21]}  Kh8 {[%clk 0:00:12]} 29. Bxd7 {[%clk 0:00:21]}  Rxd7 {[%clk 0:00:13]} 30. Qxg6 {[%clk 0:00:20]}  Rxd4 {[%clk 0:00:10]} 31. Qe8+ {[%clk 0:00:18]}  Kh7 {[%clk 0:00:09]} 32. Qxh5+ {[%clk 0:00:18]}  Kg8 {[%clk 0:00:09]} 33. Qe8+ {[%clk 0:00:17]}  Kh7 {[%clk 0:00:09]} 34. Qh5+ {[%clk 0:00:17]}  Kg8 {[%clk 0:00:09]} 35. Rf1 {[%clk 0:00:17]}  Qe7 {[%clk 0:00:05]} 36. Rf5 {[%clk 0:00:14]}  Re4 {[%clk 0:00:03]} 37. Qg6 {[%clk 0:00:10]}  Rxe5 {[%clk 0:00:04]} 38. Rf1 {[%clk 0:00:09]}  Re1 {[%clk 0:00:03]} 39. h5 {[%clk 0:00:09]}  Rxf1+ {[%clk 0:00:03]} 40. Kxf1 {[%clk 0:00:09]}  Qf6+ {[%clk 0:00:04]} 41. Qxf6 {[%clk 0:00:09]}  Bxf6 {[%clk 0:00:05]} 42. Kf2 {[%clk 0:00:09]}  Bxb2 {[%clk 0:00:05]} 43. Kf3 {[%clk 0:00:10]}  Kg7 {[%clk 0:00:05]} 44. Kf4 {[%clk 0:00:09]}  Kh6 {[%clk 0:00:05]} 45. g4 {[%clk 0:00:10]}  Bc1+ {[%clk 0:00:05]} 46. Kf5 {[%clk 0:00:10]}  b5 {[%clk 0:00:04]} 47. Ke4 {[%clk 0:00:08]}  Kg5 {[%clk 0:00:02]} 48. Kd5 {[%clk 0:00:08]}  Kxg4 {[%clk 0:00:03]} 49. Kc5 {[%clk 0:00:08]}  Kxh5 {[%clk 0:00:02]} 50. Kxb5 {[%clk 0:00:08]}  Be3 {[%clk 0:00:03]} 51. a4 {[%clk 0:00:06]}  Kg4 {[%clk 0:00:03]} 52. a5 {[%clk 0:00:07]}  Kf5 {[%clk 0:00:03]} 53. a6 {[%clk 0:00:08]}  Ke6 {[%clk 0:00:04]} 0-1


[Site "https://www.chess.com"]

[Event "Titled Tuesday Blitz June 29 2021"]
[White "ChessLover0108"]
[Black "viditchess"]
[WhiteElo "2864"]
[BlackElo "3068"]
[Result "0-1"]
[Round "09"]
[TimeControl "180+1"]
[Date "2021.06.29"]
[WhiteClock "0:00:02"]
[BlackClock "0:00:07"]

1. d4 {[%clk 0:03:00]}  Nf6 {[%clk 0:02:58]} 2. c4 {[%clk 0:03:01]}  e6 {[%clk 0:02:58]} 3. Nf3 {[%clk 0:03:01]}  d5 {[%clk 0:02:58]} 4. Nc3 {[%clk 0:03:01]}  Bb4 {[%clk 0:02:56]} 5. Bg5 {[%clk 0:03:01]}  dxc4 {[%clk 0:02:51]} 6. e4 {[%clk 0:02:58]}  h6 {[%clk 0:02:51]} 7. Bxf6 {[%clk 0:02:50]}  Qxf6 {[%clk 0:02:52]} 8. Bxc4 {[%clk 0:02:50]}  c5 {[%clk 0:02:51]} 9. O-O {[%clk 0:02:46]}  cxd4 {[%clk 0:02:46]} 10. e5 {[%clk 0:02:47]}  Qd8 {[%clk 0:02:30]} 11. Ne4 {[%clk 0:02:42]}  O-O {[%clk 0:02:31]} 12. a3 {[%clk 0:02:42]}  Be7 {[%clk 0:02:28]} 13. Re1 {[%clk 0:02:42]}  Bd7 {[%clk 0:02:22]} 14. Bd3 {[%clk 0:01:58]}  Bc6 {[%clk 0:02:20]} 15. Rc1 {[%clk 0:01:50]}  Nd7 {[%clk 0:02:18]} 16. Bb1 {[%clk 0:01:33]}  Qb6 {[%clk 0:02:06]} 17. Qd3 {[%clk 0:01:19]}  g6 {[%clk 0:02:05]} 18. h4 {[%clk 0:01:08]}  Qxb2 {[%clk 0:01:55]} 19. h5 {[%clk 0:01:07]}  Qxa3 {[%clk 0:01:53]} 20. Qd2 {[%clk 0:00:32]}  Bxe4 {[%clk 0:01:33]} 21. Rxe4 {[%clk 0:00:16]}  g5 {[%clk 0:01:32]} 22. Rxd4 {[%clk 0:00:13]}  Rfd8 {[%clk 0:01:25]} 23. Rc7 {[%clk 0:00:09]}  Nf8 {[%clk 0:01:20]} 24. Rxb7 {[%clk 0:00:10]}  Rxd4 {[%clk 0:01:16]} 25. Qxd4 {[%clk 0:00:10]}  Rd8 {[%clk 0:01:09]} 26. Qg4 {[%clk 0:00:03]}  a5 {[%clk 0:01:01]} 27. Kh2 {[%clk 0:00:03]}  Qc5 {[%clk 0:00:57]} 28. Qe4 {[%clk 0:00:02]}  Kg7 {[%clk 0:00:40]} 29. Kg3 {[%clk 0:00:03]}  Rd1 {[%clk 0:00:34]} 30. Bc2 {[%clk 0:00:03]}  Rf1 {[%clk 0:00:28]} 31. Nd4 {[%clk 0:00:03]}  Rc1 {[%clk 0:00:21]} 32. Bd3 {[%clk 0:00:02]}  Kg8 {[%clk 0:00:20]} 33. Kh2 {[%clk 0:00:02]}  Rd1 {[%clk 0:00:19]} 34. Nf3 {[%clk 0:00:02]}  a4 {[%clk 0:00:18]} 35. Qxa4 {[%clk 0:00:01]}  Rxd3 {[%clk 0:00:18]} 36. Qe8 {[%clk 0:00:02]}  Rxf3 {[%clk 0:00:06]} 37. gxf3 {[%clk 0:00:01]}  Qxf2+ {[%clk 0:00:06]} 38. Kh1 {[%clk 0:00:02]}  Qxf3+ {[%clk 0:00:07]} 39. Kh2 {[%clk 0:00:02]}  Qxb7 {[%clk 0:00:07]} 0-1


[Site "https://www.chess.com"]

[Event "Titled Tuesday Blitz June 29 2021"]
[White "GM_Crest"]
[Black "Alexander_Zubov"]
[WhiteElo "2805"]
[BlackElo "2995"]
[Result "1-0"]
[Round "09"]
[TimeControl "180+1"]
[Date "2021.06.29"]
[WhiteClock "0:01:04"]
[BlackClock "0:00:31"]

1. d4 {[%clk 0:03:00]}  Nf6 {[%clk 0:02:57]} 2. c4 {[%clk 0:03:01]}  g6 {[%clk 0:02:57]} 3. Nc3 {[%clk 0:03:01]}  d5 {[%clk 0:02:58]} 4. Nf3 {[%clk 0:03:00]}  Bg7 {[%clk 0:02:58]} 5. cxd5 {[%clk 0:03:01]}  Nxd5 {[%clk 0:02:57]} 6. Bg5 {[%clk 0:03:02]}  Nxc3 {[%clk 0:02:54]} 7. bxc3 {[%clk 0:03:01]}  c5 {[%clk 0:02:54]} 8. Qd2 {[%clk 0:03:00]}  Qa5 {[%clk 0:02:51]} 9. e3 {[%clk 0:02:49]}  Nc6 {[%clk 0:02:42]} 10. Rb1 {[%clk 0:02:47]}  cxd4 {[%clk 0:02:37]} 11. cxd4 {[%clk 0:02:46]}  Qxd2+ {[%clk 0:02:37]} 12. Nxd2 {[%clk 0:02:46]}  b6 {[%clk 0:02:34]} 13. Bb5 {[%clk 0:02:43]}  Bd7 {[%clk 0:02:33]} 14. O-O {[%clk 0:02:43]}  Na5 {[%clk 0:02:24]} 15. Rfc1 {[%clk 0:02:40]}  Bxb5 {[%clk 0:02:19]} 16. Rxb5 {[%clk 0:02:40]}  Kd7 {[%clk 0:02:19]} 17. Rb2 {[%clk 0:01:54]}  Rhc8 {[%clk 0:02:17]} 18. Rbc2 {[%clk 0:01:54]}  Rxc2 {[%clk 0:02:14]} 19. Rxc2 {[%clk 0:01:55]}  e5 {[%clk 0:01:40]} 20. dxe5 {[%clk 0:01:55]}  Bxe5 {[%clk 0:01:39]} 21. Kf1 {[%clk 0:01:55]}  f5 {[%clk 0:01:25]} 22. Nf3 {[%clk 0:01:51]}  Bd6 {[%clk 0:01:11]} 23. Ke2 {[%clk 0:01:44]}  b5 {[%clk 0:01:08]} 24. h4 {[%clk 0:01:39]}  Nc4 {[%clk 0:01:06]} 25. h5 {[%clk 0:01:35]}  gxh5 {[%clk 0:01:02]} 26. g3 {[%clk 0:01:33]}  a6 {[%clk 0:00:56]} 27. Nd4 {[%clk 0:01:31]}  Rf8 {[%clk 0:00:56]} 28. Rc1 {[%clk 0:01:31]}  Be5 {[%clk 0:00:54]} 29. Nf3 {[%clk 0:01:30]}  Bg7 {[%clk 0:00:49]} 30. Rh1 {[%clk 0:01:30]}  h6 {[%clk 0:00:48]} 31. Bf4 {[%clk 0:01:29]}  Rc8 {[%clk 0:00:41]} 32. Rxh5 {[%clk 0:01:29]}  Nd6 {[%clk 0:00:40]} 33. Kd3 {[%clk 0:01:26]}  Ne4 {[%clk 0:00:39]} 34. Rxf5 {[%clk 0:01:15]}  Nxf2+ {[%clk 0:00:37]} 35. Ke2 {[%clk 0:01:15]}  Ne4 {[%clk 0:00:38]} 36. Rf7+ {[%clk 0:01:15]}  Ke6 {[%clk 0:00:38]} 37. Rxg7 {[%clk 0:01:15]}  Nc3+ {[%clk 0:00:38]} 38. Kd3 {[%clk 0:01:15]}  Nxa2 {[%clk 0:00:38]} 39. Nd4+ {[%clk 0:01:07]}  Kf6 {[%clk 0:00:37]} 40. Ra7 {[%clk 0:01:07]}  Nb4+ {[%clk 0:00:37]} 41. Ke4 {[%clk 0:01:07]}  Kg6 {[%clk 0:00:33]} 42. Bd6 {[%clk 0:01:05]}  Re8+ {[%clk 0:00:33]} 43. Kf3 {[%clk 0:01:04]}  Nd5 {[%clk 0:00:32]} 44. e4 {[%clk 0:01:04]}  Nc3 {[%clk 0:00:31]} 45. e5 {[%clk 0:01:04]} 1-0


[Site "https://www.chess.com"]

[Event "Titled Tuesday Blitz June 29 2021"]
[White "1977Ivan"]
[Black "GM_dmitrij"]
[WhiteElo "2729"]
[BlackElo "2903"]
[Result "0-1"]
[Round "09"]
[TimeControl "180+1"]
[Date "2021.06.29"]
[WhiteClock "0:00:01"]
[BlackClock "0:00:08"]

1. d4 {[%clk 0:03:00]}  d5 {[%clk 0:02:56]} 2. c4 {[%clk 0:03:01]}  c6 {[%clk 0:02:55]} 3. cxd5 {[%clk 0:02:59]}  cxd5 {[%clk 0:02:55]} 4. Bf4 {[%clk 0:02:59]}  Nc6 {[%clk 0:02:55]} 5. e3 {[%clk 0:03:00]}  Nf6 {[%clk 0:02:55]} 6. Bb5 {[%clk 0:02:59]}  e6 {[%clk 0:02:51]} 7. Nf3 {[%clk 0:02:54]}  Bd6 {[%clk 0:02:48]} 8. O-O {[%clk 0:02:51]}  Bxf4 {[%clk 0:02:42]} 9. Bxc6+ {[%clk 0:02:49]}  bxc6 {[%clk 0:02:43]} 10. exf4 {[%clk 0:02:49]}  Qd6 {[%clk 0:02:29]} 11. Ne5 {[%clk 0:02:44]}  O-O {[%clk 0:02:20]} 12. Qa4 {[%clk 0:02:42]}  Bd7 {[%clk 0:01:47]} 13. Nd2 {[%clk 0:02:26]}  Rfb8 {[%clk 0:01:46]} 14. Nb3 {[%clk 0:02:21]}  a5 {[%clk 0:01:37]} 15. Nc5 {[%clk 0:02:13]}  Rb4 {[%clk 0:01:29]} 16. Qa3 {[%clk 0:02:10]}  Qc7 {[%clk 0:00:53]} 17. Qc3 {[%clk 0:01:45]}  Be8 {[%clk 0:00:51]} 18. f3 {[%clk 0:01:39]}  Nd7 {[%clk 0:00:33]} 19. b3 {[%clk 0:01:39]}  Nxc5 {[%clk 0:00:20]} 20. Qxc5 {[%clk 0:01:38]}  Qa7 {[%clk 0:00:20]} 21. Rfd1 {[%clk 0:00:33]}  f6 {[%clk 0:00:20]} 22. Ng4 {[%clk 0:00:20]}  Qxc5 {[%clk 0:00:19]} 23. dxc5 {[%clk 0:00:21]}  Rxf4 {[%clk 0:00:20]} 24. a3 {[%clk 0:00:20]}  e5 {[%clk 0:00:17]} 25. Nf2 {[%clk 0:00:20]}  Rb8 {[%clk 0:00:16]} 26. Rab1 {[%clk 0:00:18]}  Bg6 {[%clk 0:00:16]} 27. Rb2 {[%clk 0:00:17]}  Rc4 {[%clk 0:00:14]} 28. bxc4 {[%clk 0:00:17]}  Rxb2 {[%clk 0:00:15]} 29. cxd5 {[%clk 0:00:17]}  cxd5 {[%clk 0:00:15]} 30. g4 {[%clk 0:00:17]}  d4 {[%clk 0:00:14]} 31. Rc1 {[%clk 0:00:17]}  Rb7 {[%clk 0:00:10]} 32. h4 {[%clk 0:00:14]}  h6 {[%clk 0:00:09]} 33. Kf1 {[%clk 0:00:13]}  Kf7 {[%clk 0:00:09]} 34. Ke2 {[%clk 0:00:13]}  Ke6 {[%clk 0:00:10]} 35. Ne4 {[%clk 0:00:11]}  Kd5 {[%clk 0:00:08]} 36. c6 {[%clk 0:00:11]}  Rc7 {[%clk 0:00:07]} 37. Rc5+ {[%clk 0:00:10]}  Ke6 {[%clk 0:00:07]} 38. Kd3 {[%clk 0:00:11]}  a4 {[%clk 0:00:06]} 39. h5 {[%clk 0:00:10]}  Bxe4+ {[%clk 0:00:05]} 40. Kxe4 {[%clk 0:00:10]}  Kd6 {[%clk 0:00:06]} 41. Ra5 {[%clk 0:00:09]}  Rxc6 {[%clk 0:00:07]} 42. Rxa4 {[%clk 0:00:09]}  Rc3 {[%clk 0:00:08]} 43. Ra6+ {[%clk 0:00:08]}  Kc5 {[%clk 0:00:08]} 44. Ra5+ {[%clk 0:00:06]}  Kc4 {[%clk 0:00:08]} 45. Ra7 {[%clk 0:00:04]}  Re3+ {[%clk 0:00:07]} 46. Kf5 {[%clk 0:00:05]}  Rxf3+ {[%clk 0:00:08]} 47. Ke6 {[%clk 0:00:06]}  d3 {[%clk 0:00:08]} 48. Rc7+ {[%clk 0:00:04]}  Kb3 {[%clk 0:00:08]} 49. Rxg7 {[%clk 0:00:04]}  d2 {[%clk 0:00:08]} 50. Rd7 {[%clk 0:00:03]}  Kc2 {[%clk 0:00:08]} 51. a4 {[%clk 0:00:01]}  Rd3 {[%clk 0:00:08]} 0-1


[Site "https://www.chess.com"]

[Event "Titled Tuesday Blitz June 29 2021"]
[White "Jospem"]
[Black "AnotherGrumpy"]
[WhiteElo "2942"]
[BlackElo "2594"]
[Result "1-0"]
[Round "09"]
[TimeControl "180+1"]
[Date "2021.06.29"]
[WhiteClock "0:00:33"]
[BlackClock "0:00:05"]

1. e4 {[%clk 0:03:00]}  c6 {[%clk 0:02:58]} 2. Nf3 {[%clk 0:03:00]}  d5 {[%clk 0:02:58]} 3. d3 {[%clk 0:03:01]}  g6 {[%clk 0:02:57]} 4. Nbd2 {[%clk 0:03:00]}  Bg7 {[%clk 0:02:58]} 5. g3 {[%clk 0:03:01]}  Bg4 {[%clk 0:02:58]} 6. Bg2 {[%clk 0:03:01]}  e6 {[%clk 0:02:58]} 7. O-O {[%clk 0:03:00]}  Ne7 {[%clk 0:02:59]} 8. h3 {[%clk 0:02:59]}  Bxf3 {[%clk 0:02:59]} 9. Qxf3 {[%clk 0:03:00]}  O-O {[%clk 0:02:59]} 10. h4 {[%clk 0:03:00]}  Nd7 {[%clk 0:02:59]} 11. Qe2 {[%clk 0:03:00]}  Re8 {[%clk 0:02:58]} 12. Nf3 {[%clk 0:03:00]}  c5 {[%clk 0:02:56]} 13. c3 {[%clk 0:02:55]}  Nc6 {[%clk 0:02:56]} 14. Bf4 {[%clk 0:02:48]}  d4 {[%clk 0:02:31]} 15. c4 {[%clk 0:02:34]}  Nde5 {[%clk 0:02:13]} 16. Nh2 {[%clk 0:02:22]}  Rb8 {[%clk 0:02:10]} 17. Bxe5 {[%clk 0:02:21]}  Nxe5 {[%clk 0:02:08]} 18. f4 {[%clk 0:02:22]}  Nc6 {[%clk 0:02:06]} 19. e5 {[%clk 0:02:20]}  Ne7 {[%clk 0:01:57]} 20. g4 {[%clk 0:02:16]}  b5 {[%clk 0:01:57]} 21. b3 {[%clk 0:02:13]}  bxc4 {[%clk 0:01:57]} 22. dxc4 {[%clk 0:02:07]}  Qa5 {[%clk 0:01:57]} 23. Rad1 {[%clk 0:02:04]}  Red8 {[%clk 0:01:51]} 24. Be4 {[%clk 0:02:01]}  Qc7 {[%clk 0:01:48]} 25. Nf3 {[%clk 0:02:00]}  a5 {[%clk 0:01:47]} 26. Kg2 {[%clk 0:01:47]}  a4 {[%clk 0:01:47]} 27. Rd3 {[%clk 0:01:48]}  axb3 {[%clk 0:01:46]} 28. axb3 {[%clk 0:01:49]}  Rb4 {[%clk 0:01:41]} 29. h5 {[%clk 0:01:41]}  Rdb8 {[%clk 0:01:40]} 30. Nd2 {[%clk 0:01:39]}  Qa7 {[%clk 0:01:03]} 31. hxg6 {[%clk 0:01:25]}  hxg6 {[%clk 0:01:02]} 32. f5 {[%clk 0:01:19]}  Bh6 {[%clk 0:00:43]} 33. f6 {[%clk 0:01:11]}  Nc8 {[%clk 0:00:31]} 34. Rh1 {[%clk 0:01:10]}  Qa2 {[%clk 0:00:18]} 35. Rxh6 {[%clk 0:01:04]}  Rxb3 {[%clk 0:00:17]} 36. Kf3 {[%clk 0:00:36]}  Rxd3+ {[%clk 0:00:16]} 37. Bxd3 {[%clk 0:00:37]}  Qa1 {[%clk 0:00:05]} 38. Qh2 {[%clk 0:00:33]}  Qd1+ {[%clk 0:00:05]} 39. Be2 {[%clk 0:00:33]} 1-0


[Site "https://www.chess.com"]

[Event "Titled Tuesday Blitz June 29 2021"]
[White "NTBT_DHS"]
[Black "Alexsur1981"]
[WhiteElo "2715"]
[BlackElo "2869"]
[Result "0-1"]
[Round "09"]
[TimeControl "180+1"]
[Date "2021.06.29"]
[WhiteClock "0:00:17"]
[BlackClock "0:00:28"]

1. d4 {[%clk 0:02:57]}  d5 {[%clk 0:02:57]} 2. c4 {[%clk 0:02:57]}  e6 {[%clk 0:02:57]} 3. Nf3 {[%clk 0:02:58]}  c6 {[%clk 0:02:57]} 4. g3 {[%clk 0:02:59]}  Nf6 {[%clk 0:02:58]} 5. Bg2 {[%clk 0:02:59]}  dxc4 {[%clk 0:02:58]} 6. O-O {[%clk 0:02:58]}  b5 {[%clk 0:02:58]} 7. b3 {[%clk 0:02:57]}  cxb3 {[%clk 0:02:58]} 8. axb3 {[%clk 0:02:58]}  Bb7 {[%clk 0:02:58]} 9. Bd2 {[%clk 0:02:56]}  Nbd7 {[%clk 0:02:57]} 10. Ba5 {[%clk 0:02:57]}  Qb8 {[%clk 0:02:56]} 11. Nbd2 {[%clk 0:02:57]}  Be7 {[%clk 0:02:54]} 12. e4 {[%clk 0:02:54]}  O-O {[%clk 0:02:53]} 13. b4 {[%clk 0:02:55]}  e5 {[%clk 0:02:38]} 14. Nb3 {[%clk 0:02:44]}  exd4 {[%clk 0:02:17]} 15. Nfxd4 {[%clk 0:02:41]}  Re8 {[%clk 0:02:11]} 16. f4 {[%clk 0:02:38]}  c5 {[%clk 0:02:08]} 17. Nxb5 {[%clk 0:02:31]}  cxb4 {[%clk 0:01:59]} 18. Nc7 {[%clk 0:02:15]}  Bxe4 {[%clk 0:01:30]} 19. Nxe8 {[%clk 0:02:03]}  Qxe8 {[%clk 0:01:27]} 20. Bxe4 {[%clk 0:02:01]}  Nxe4 {[%clk 0:01:28]} 21. Re1 {[%clk 0:01:59]}  Ndf6 {[%clk 0:01:24]} 22. Qd4 {[%clk 0:01:47]}  Bf8 {[%clk 0:01:07]} 23. Bc7 {[%clk 0:01:25]}  Qc6 {[%clk 0:01:02]} 24. Rac1 {[%clk 0:01:19]}  Nc3 {[%clk 0:00:59]} 25. Be5 {[%clk 0:01:13]}  Ng4 {[%clk 0:00:54]} 26. h3 {[%clk 0:01:02]}  Nxe5 {[%clk 0:00:53]} 27. fxe5 {[%clk 0:00:56]}  a5 {[%clk 0:00:50]} 28. Kh2 {[%clk 0:00:39]}  a4 {[%clk 0:00:49]} 29. Nd2 {[%clk 0:00:40]}  Qe6 {[%clk 0:00:37]} 30. Ne4 {[%clk 0:00:36]}  Nxe4 {[%clk 0:00:33]} 31. Qxe4 {[%clk 0:00:37]}  Re8 {[%clk 0:00:28]} 32. Rc6 {[%clk 0:00:30]}  Qd7 {[%clk 0:00:28]} 33. e6 {[%clk 0:00:24]}  Rxe6 {[%clk 0:00:28]} 34. Rxe6 {[%clk 0:00:24]}  Qxe6 {[%clk 0:00:29]} 35. Qxe6 {[%clk 0:00:24]}  fxe6 {[%clk 0:00:30]} 36. Kg2 {[%clk 0:00:17]}  a3 {[%clk 0:00:30]} 37. Kf3 {[%clk 0:00:17]}  b3 {[%clk 0:00:29]} 38. Ke3 {[%clk 0:00:17]}  a2 {[%clk 0:00:28]} 39. Kd3 {[%clk 0:00:17]}  b2 {[%clk 0:00:28]} 0-1


[Site "https://www.chess.com"]

[Event "Titled Tuesday Blitz June 29 2021"]
[White "Riazantsev"]
[Black "exoticprincess"]
[WhiteElo "2763"]
[BlackElo "2870"]
[Result "0-1"]
[Round "09"]
[TimeControl "180+1"]
[Date "2021.06.29"]
[WhiteClock "0:00:07"]
[BlackClock "0:00:22"]

1. d4 {[%clk 0:03:00]}  d5 {[%clk 0:02:51]} 2. Nf3 {[%clk 0:03:00]}  c6 {[%clk 0:02:43]} 3. c4 {[%clk 0:03:00]}  Nf6 {[%clk 0:02:42]} 4. Nc3 {[%clk 0:02:59]}  dxc4 {[%clk 0:02:42]} 5. a4 {[%clk 0:02:58]}  a5 {[%clk 0:02:42]} 6. e3 {[%clk 0:02:57]}  Bg4 {[%clk 0:02:43]} 7. Bxc4 {[%clk 0:02:56]}  e6 {[%clk 0:02:43]} 8. O-O {[%clk 0:02:55]}  Bb4 {[%clk 0:02:43]} 9. h3 {[%clk 0:02:51]}  Bh5 {[%clk 0:02:43]} 10. Qe2 {[%clk 0:02:50]}  Nbd7 {[%clk 0:02:43]} 11. Rd1 {[%clk 0:02:45]}  O-O {[%clk 0:02:42]} 12. e4 {[%clk 0:02:45]}  h6 {[%clk 0:02:37]} 13. Bf4 {[%clk 0:02:43]}  Re8 {[%clk 0:02:36]} 14. Rac1 {[%clk 0:02:37]}  Qe7 {[%clk 0:02:25]} 15. Bg3 {[%clk 0:02:34]}  Rac8 {[%clk 0:02:18]} 16. Na2 {[%clk 0:02:28]}  Bg6 {[%clk 0:02:13]} 17. Bd3 {[%clk 0:02:16]}  Bh5 {[%clk 0:02:05]} 18. Bh4 {[%clk 0:02:14]}  Qf8 {[%clk 0:02:01]} 19. g4 {[%clk 0:02:00]}  Bg6 {[%clk 0:02:00]} 20. Ne5 {[%clk 0:01:54]}  Bh7 {[%clk 0:01:51]} 21. f4 {[%clk 0:01:54]}  Be7 {[%clk 0:01:43]} 22. Bf2 {[%clk 0:01:49]}  Nxe5 {[%clk 0:01:34]} 23. dxe5 {[%clk 0:01:35]}  Nd7 {[%clk 0:01:35]} 24. Nc3 {[%clk 0:01:34]}  g5 {[%clk 0:01:33]} 25. Bc4 {[%clk 0:01:21]}  Red8 {[%clk 0:01:33]} 26. Rxd7 {[%clk 0:01:21]}  Rxd7 {[%clk 0:01:33]} 27. f5 {[%clk 0:01:21]}  Rdd8 {[%clk 0:01:23]} 28. Qe3 {[%clk 0:01:13]}  Kh8 {[%clk 0:01:07]} 29. Kg2 {[%clk 0:01:10]}  Bb4 {[%clk 0:01:01]} 30. h4 {[%clk 0:01:04]}  Qg7 {[%clk 0:00:52]} 31. Kf3 {[%clk 0:00:58]}  Qxe5 {[%clk 0:00:45]} 32. hxg5 {[%clk 0:00:55]}  hxg5 {[%clk 0:00:46]} 33. Qxg5 {[%clk 0:00:45]}  Rg8 {[%clk 0:00:45]} 34. Qh4 {[%clk 0:00:41]}  exf5 {[%clk 0:00:44]} 35. gxf5 {[%clk 0:00:39]}  Rg7 {[%clk 0:00:42]} 36. Ne2 {[%clk 0:00:37]}  Be7 {[%clk 0:00:33]} 37. Qh5 {[%clk 0:00:25]}  Bf6 {[%clk 0:00:32]} 38. Rh1 {[%clk 0:00:19]}  Re8 {[%clk 0:00:31]} 39. Bd3 {[%clk 0:00:13]}  Kg8 {[%clk 0:00:31]} 40. Bd4 {[%clk 0:00:13]}  Qd6 {[%clk 0:00:31]} 41. Bxf6 {[%clk 0:00:12]}  Qxf6 {[%clk 0:00:31]} 42. Nf4 {[%clk 0:00:12]}  Qe5 {[%clk 0:00:28]} 43. Qh6 {[%clk 0:00:11]}  Rd8 {[%clk 0:00:21]} 44. f6 {[%clk 0:00:06]}  Rxd3+ {[%clk 0:00:21]} 45. Nxd3 {[%clk 0:00:06]}  Qxe4+ {[%clk 0:00:22]} 46. Kf2 {[%clk 0:00:07]}  Rg2+ {[%clk 0:00:22]} 0-1


[Site "https://www.chess.com"]